Cogmind - Beta 17.1 @@@ ROGUE MODE // 2026.08.21 @ 23:32:09 Player: Scuttle Result: Destroyed by Triborg with Siege Cannon Performance ------------- Evolutions (2) 1000 Regions Visited (8) 1600 Robots Destroyed (105) 525 Value Destroyed (3362) 3362 Prototype IDs (12) 240 Alien Tech Used (0) 0 Bonus (9780) 9780 TOTAL SCORE: 16507 Bonus ------- High Alert Combat Kills 121 Follower Combat Kills 1177 Prayed to X0-1V1 5000 Major X0-1V1 Interference 3200 Registered with UFD 300 Friendly Fire -18 Cogmind --------- Core Integrity 0/350 Matter 159/300 Energy 256/275 System Corruption 0% Temperature Cool (37) Movement Treading (167) Location -8/Scraptown Parts ------- > --- POWER (1) -------- Deuterium Engine > --- PROPULSION (4) --- Improved Treads Armored Treads Armored Treads Armored Treads > --- UTILITY (3) ------ High-capacity Storage Unit Improved Light Armor Plating Improved Light Armor Plating > --- WEAPON (3) ------- Enhanced Autogun Enhanced Autogun Enhanced Autogun > --- INVENTORY (22) --- Cooled Ion Engine Armored Treads Improved Heat Sink Advanced Targeting Computer Spread Laser Spread Laser Spread Laser Battle Rifle Minigun Minigun Minigun Enhanced Autogun Enhanced Autogun Enhanced Autogun Enhanced Autogun Enhanced Autogun CPS Tube (2) CPS Tube (2) Peak State ------------ > --- POWER ------------ Light Angular Momentum Engine > --- PROPULSION ------- Improved Treads Armored Treads Armored Treads Armored Treads > --- UTILITY ---------- Improved Heat Sink High-capacity Storage Unit X0-1V1's Piety Tracker > --- WEAPON ----------- Minigun Enhanced Autogun Enhanced Autogun > --- INVENTORY -------- Cooled Ion Engine Deuterium Engine Improved Treads Armored Treads Advanced Targeting Computer Improved Light Armor Plating Improved Light Armor Plating Spread Laser Spread Laser Spread Laser Minigun Minigun Enhanced Autogun Enhanced Autogun Enhanced Autogun Enhanced Autogun Enhanced Autogun Enhanced Autogun Enhanced Autogun Heavy Assault Cannon Datajack [Rating: 50] Favorites ----------- Power Light Angular Momentum Engine Engine Light Angular Momentum Engine Power Core Light Nuclear Core Propulsion Light Treads Treads Light Treads Leg Improved Titanium Leg Utility High-capacity Storage Unit Device Improved Heat Sink Storage High-capacity Storage Unit Processor Targeting Computer Protection Improved Light Armor Plating Weapon Enhanced Autogun Energy Gun Small Laser Ballistic Gun Enhanced Autogun Ballistic Cannon Heavy Assault Cannon Build | -11 -10 -10 -10 -9 -8 -8 -8 -8 ------- Run | Yrd Mat Min Exi Min Mat Sto Rec Scr Slots Evolved 4 | . . . . . 4 . . . Power . | . . . . . . . . . Propulsion 2 | . . . . . 2 . . . Utility 1 | . . . . . 1 . . . Weapon 1 | . . . . . 1 . . . Parts Attached 80 | 5 10 9 . 5 11 30 1 9 Power 7 | 1 1 . . 1 2 1 . 1 Engine 6 | 1 1 . . 1 1 1 . 1 Core 1 | . . . . . 1 . . . Reactor . | . . . . . . . . . Propulsion 21 | 2 3 . . . 5 11 . . Treads 13 | 2 3 . . . . 8 . . Leg 8 | . . . . . 5 3 . . Wheel . | . . . . . . . . . Hover . | . . . . . . . . . Flight . | . . . . . . . . . Utility 25 | . 3 7 . 2 1 7 1 4 Device 13 | . 1 6 . 2 . 2 1 1 Storage 4 | . 1 . . . 1 2 . . Processor 1 | . 1 . . . . . . . Hackware . | . . . . . . . . . Protection 7 | . . 1 . . . 3 . 3 Artifact . | . . . . . . . . . Weapon 27 | 2 3 2 . 2 3 11 . 4 Energy Gun 9 | . 3 2 . 1 3 . . . Energy Cannon . | . . . . . . . . . Ballistic Gun 17 | 2 . . . 1 . 10 . 4 Ballistic Cannon 1 | . . . . . . 1 . . Launcher . | . . . . . . . . . Special Weapon . | . . . . . . . . . Impact Weapon . | . . . . . . . . . Slashing Weapon . | . . . . . . . . . Piercing Weapon . | . . . . . . . . . Special Melee Weapon . | . . . . . . . . . Unidentified Prototypes 3 | . 1 . . . . 2 . . Corrupted Parts 2 | . . . . . . . . 2 System Corruption 14 | . . . . . . . . 14 Parts Lost 9 | . . 3 . . 1 1 . 4 Power 1 | . . . . . . . . 1 Propulsion 2 | . . 1 . . . . . 1 Utility 3 | . . 1 . . . 1 . 1 Weapon 3 | . . 1 . . 1 . . 1 Highest Loss Streak 4 | . . 1 . . 1 1 . 4 To Critical Strikes 1 | . . 1 . . . . . . Average Backups 12 | . 6 7 8 7 7 17 21 20 Power 1 | . . 1 2 2 1 2 2 1 Propulsion 1 | . . . . . 3 2 2 1 Utility 3 | . 2 3 4 2 . 3 3 3 Weapon 5 | . 1 1 1 1 . 8 13 12 Tool/Special . | . . . . . . . . . Unused Backups 27 | . 5 . . . 3 4 2 13 Power 6 | . 3 . . . 2 . . 1 Propulsion 1 | . . . . . . . . 1 Utility 6 | . 2 . . . 1 2 . 1 Weapon 10 | . . . . . . 1 1 8 Tool/Special 4 | . . . . . . 1 1 2 Average Slot Usage (%) 97 | . 93 100 100 98 96 97 94 98 Engine 11 | . 14 14 14 14 7 9 9 8 Treads 23 | . 27 28 28 28 . 12 36 35 Leg 8 | . . . . . 34 23 . . Device 9 | . . 8 14 11 16 10 9 15 Storage 10 | . 10 14 14 14 9 9 9 9 Processor 2 | . 10 . . . . . . . Protection 3 | . . 5 . 1 . 7 9 2 Energy Gun 10 | . 6 28 28 25 21 3 . . Ballistic Gun 15 | . 21 . . 2 3 21 21 26 Peak Build Rating 50 | 5 23 23 22 23 45 48 50 50 Average Rating 30 | 3 8 17 22 19 42 41 37 47 On Entrance 23 | . 5 23 22 22 21 45 40 30 Avg Prop Armor Cover (%) 6 | . . . . . 6 . . 6 Naked Turns . | . . . . . . . . . Heaviest Build 68 | 8 33 35 32 34 60 68 62 64 Greatest Support 89 | 40 40 40 40 40 80 89 83 83 Greatest Overweight (x) 1 | . . . . . 1 1 . 1 Average Overweight (x) . | . . . . . . . . . Largest Inventory Capacity 22 | 5 15 15 15 17 22 22 22 22 Average Capacity 18 | 5 12 15 15 16 21 22 22 22 Most Carried 22 | 2 10 9 8 9 12 22 22 22 Average Carried 12 | . 6 7 8 7 7 17 21 20 Final Capacity 22 | 5 15 15 15 17 22 22 22 22 Final Carried 22 | 2 9 8 8 8 9 22 22 18 Class Distribution -------------------- 46% | Mutant 16% | Tank 14% | Commander-Gunner 12% | Gunner 7% | Commander-Tank Dominant Class ---------------- Mutant | -10/Materials Mutant | -10/Mines Mutant | -10/Exiles Mutant | -9/Mines Gunner | -8/Materials Tank | -8/Storage Commander-Tank | -8/Recycling Commander-Gunner | -8/Scraptown Resources | -11 -10 -10 -10 -9 -8 -8 -8 -8 ----------- Run | Yrd Mat Min Exi Min Mat Sto Rec Scr Matter Collected 3255 | 144 486 474 . 73 429 1298 . 351 Remotely . | . . . . . . . . . Salvage Created 4464 | . 888 390 . 89 455 1892 59 691 Parts 238 | . 50 13 . 18 19 102 3 33 Haulers Intercepted 8 | . 2 . . . . 6 . . Recyclers Shooed 2 | . 2 . . . . . . . Parts Field Recycled . | . . . . . . . . . Retrieved Matter . | . . . . . . . . . Parts Self-Destructed . | . . . . . . . . . Prevented . | . . . . . . . . . Parts Restored . | . . . . . . . . . Kills | -11 -10 -10 -10 -9 -8 -8 -8 -8 ------- Run | Yrd Mat Min Exi Min Mat Sto Rec Scr Combat Hostiles Destroyed 89 | . 15 12 . 7 12 33 1 9 Guns 83 | . 15 9 . 7 11 31 1 9 Cannons 2 | . . . . . . 2 . . AOE 2 | . . 2 . . . . . . Classes Destroyed 14 | . 5 . . 1 2 3 . 3 Builder 2 | . . . . 1 . 1 . . Hauler 8 | . 2 . . . . 6 . . Recycler 2 | . 2 . . . . . . . Operator 2 | . . . . . . 2 . . Watcher 2 | . 2 . . . . . . . Swarmer 20 | . 3 3 . 7 4 3 . . Cutter 1 | . . . . . . 1 . . Grunt 42 | . 12 9 . . 5 16 . . Protector 1 | . . . . . . 1 . . Sentry 15 | . . . . . 2 12 1 . Specialist 1 | . . . . . 1 . . . Bolteater 1 | . . . . . . . . 1 Scrapper 6 | . . . . . . . . 6 Elite 2 | . . . . . . . . 2 Best Kill Streak 7 | . 4 3 . 4 3 7 1 4 Combat Bots Only 6 | . 3 3 . 4 3 6 1 4 Max Kills in Single Turn 3 | . 1 3 . 2 1 2 1 2 Gunslinging 1 | . . . . 1 . 1 . . Exploded 2 | . . 2 . . . . . . Melee . | . . . . . . . . . Uniques/NPCs Destroyed . | . . . . . . . . . Combat | -11 -10 -10 -10 -9 -8 -8 -8 -8 -------- Run | Yrd Mat Min Exi Min Mat Sto Rec Scr Hostile Shots Fired 474 | . 72 73 . 28 59 166 . 76 Missed 126 | . 25 16 . 2 19 49 . 15 Hits 348 | . 47 57 . 26 40 117 . 61 Melee 2 | . . . . . . 2 . . Projectile 346 | . 47 57 . 26 40 115 . 61 AOE 1 | . . . . . . 1 . . Critical Strikes 17 | . . 2 . . 1 7 . 7 Damage Taken 5725 | . 538 651 . 219 546 1816 . 1955 Core 709 | . 77 125 . 42 90 208 . 167 Absorbed by Shields . | . . . . . . . . . Ignored by Resistances 32 | . . . . . . 18 . 14 Regen/Repaired (Parts) 100 | . 44 . . . . 56 . . Core Remaining (%) 94 | 100 . . . 88 . . . . Volleys Fired 271 | . 70 32 . 7 34 101 1 26 Largest 3 | . 2 2 . 2 3 3 3 3 Hottest 193 | . 105 105 . 96 193 193 75 75 Shots Fired 676 | . 140 63 . 14 97 281 3 78 Gun 661 | . 140 63 . 14 97 266 3 78 Cannon 15 | . . . . . . 15 . . Launcher . | . . . . . . . . . Special . | . . . . . . . . . Kinetic 476 | . 130 . . . 22 243 3 78 Thermal 200 | . 10 63 . 14 75 38 . . Explosive . | . . . . . . . . . Electromagnetic . | . . . . . . . . . Robot Hit Streak 24 | . 14 23 . 24 7 14 12 10 Robot Miss Streak 6 | . 5 3 . 2 6 5 . 5 Penetration Max . | . . . . . . . . . Secondary Targets 21 | . 4 2 . 3 2 9 . 1 Max Gunslinging Chain 1 | . 1 1 . 1 1 1 . 1 Shots Hit Robots 443 | . 106 45 . 9 52 181 1 49 Core Hits 185 | . 41 20 . 7 18 79 1 19 Critical Kills 2 | . . . . . . 1 . 1 Critical Parts Destroyed 1 | . 1 . . . . . . . Critical Strikes 8 | . 1 . . . 4 2 . 1 Burn 5 | . . . . . 4 1 . . Destroy 3 | . 1 . . . . 1 . 1 Melee Attacks . | . . . . . . . . . Impact . | . . . . . . . . . Slashing . | . . . . . . . . . Piercing . | . . . . . . . . . Sneak Attacks . | . . . . . . . . . Combat Hostiles . | . . . . . . . . . Follow-up Attacks . | . . . . . . . . . Damage Inflicted 7026 | . 1155 645 . 132 797 3373 17 907 Guns 6412 | . 1145 573 . 120 797 2904 16 857 Cannons 450 | . . . . . . 400 . 50 Explosions 72 | . . 72 . . . . . . Melee . | . . . . . . . . . Ramming 92 | . 10 . . 12 . 69 1 . Kinetic 4931 | . 1033 . . . 83 2892 16 907 Thermal 2003 | . 112 645 . 120 714 412 . . Explosive . | . . . . . . . . . Electromagnetic . | . . . . . . . . . Impact . | . . . . . . . . . Slashing . | . . . . . . . . . Piercing . | . . . . . . . . . Highest Corruption 15 | . 1 15 . . . 2 9 14 Average Corruption 4 | . 1 13 . . . 2 9 11 Corruption Purged . | . . . . . . . . . Corruption Blocked . | . . . . . . . . . Effects 31 | . 7 12 . . . 6 6 . Message Errors 8 | . 2 2 . . . 3 1 . Matter Fused 6 | . 1 3 . . . 1 1 . Heat Flow Errors 4 | . 3 1 . . . . . . Energy Discharges 3 | . 1 1 . . . . 1 . Data Loss (minor) 4 | . . 2 . . . . 2 . Data Loss (major) 2 | . . 1 . . . . 1 . Misfires 3 | . . 1 . . . 2 . . Weapon Failures 1 | . . 1 . . . . . . Overload Shots . | . . . . . . . . . Overflow Damage 64 | . . . . . . 64 . . Projectiles 60 | . . . . . . 60 . . Explosions . | . . . . . . . . . Melee 4 | . . . . . . 4 . . Knockbacks 5 | . 1 . . . . 4 . . Impact 2 | . 1 . . . . 1 . . Kinetic 3 | . . . . . . 3 . . Secondary . | . . . . . . . . . Self-Inflicted Damage 67 | . . 67 . . . . . . Shots 2 | . . 2 . . . . . . Rammed 8 | . 4 . . 1 . 2 1 . Targets Rammed 11 | . 4 . . 2 . 4 1 . Kicked 2 | . . . . . . 2 . . Crushed 1 | . . . . 1 . . . . Highest Temperature 324 | . 251 300 . 132 324 309 2 319 Average Temperature 70 | . 52 109 . 67 79 40 1 51 Received Heat Transfer 2139 | . 270 234 . . 210 873 . 552 Effects 7 | . . 2 . . 4 . . 1 Shutdowns 1 | . . . . . . . . 1 Energy Bleed 2 | . . 2 . . . . . . Interference 4 | . . . . . 4 . . . Siege Activations . | . . . . . . . . . Martial Activations . | . . . . . . . . . Shielding Activations . | . . . . . . . . . Robots Disrupted . | . . . . . . . . . Combat Hostiles . | . . . . . . . . . Robots Corrupted . | . . . . . . . . . Combat Hostiles . | . . . . . . . . . Parts Fried 1 | . . . . . . . . 1 Impact Corruptions 1 | . . . . . . 1 . . Robots Melted 2 | . . 1 . . 1 . . . Combat Hostiles 2 | . . 1 . . 1 . . . Parts Melted 20 | . . 5 . . 8 3 . 4 Heat Transferred 5057 | . 261 1514 . 285 1998 999 . . Parts Sabotaged . | . . . . . . . . . Parts Stolen . | . . . . . . . . . Parts Stripped . | . . . . . . . . . Power Chain Reactions . | . . . . . . . . . Alert | -11 -10 -10 -10 -9 -8 -8 -8 -8 ------- Run | Yrd Mat Min Exi Min Mat Sto Rec Scr Maximum Alert Level 2 | . . . . . 1 2 1 . Low Security (%) 70 | 100 100 100 . 100 31 30 79 . Level 1 17 | . . . . . 68 28 20 . Level 2 11 | . . . . . . 41 . . Level 3 . | . . . . . . . . . Level 4 . | . . . . . . . . . Level 5 . | . . . . . . . . . High Security . | . . . . . . . . . Max Security . | . . . . . . . . . Sterilizations 1 | . . . . . 1 . . . Peak Influence 580 | . 93 138 . 90 289 580 221 . Initial 221 | . . 16 . . 15 85 221 . Average 147 | . 42 43 . 30 186 324 168 . Influence Increases 2627 | . 462 388 . 165 559 1019 34 . Destroy 0b10 Robot/C 1700 | . 300 240 . 140 360 640 20 . Destroy 0b10 Robot/NC 90 | . 30 . . 5 . 55 . . Destroy Leader 412 | . 78 50 . 20 80 184 . . Allied During Kill 72 | . . . . . 48 10 14 . Successful Hack 31 | . 9 . . . 5 17 . . Disable Machine 135 | . 15 60 . . . 60 . . Destroy Structure 22 | . . 8 . . 6 8 . . Lose Combat Pursuer 165 | . 30 30 . . 60 45 . . Influence Decreases 2627 | . 418 386 46 125 396 654 497 105 Entered New Map 669 | . . 28 46 . 25 118 347 105 Time Decay 1812 | . 418 332 . 125 261 526 150 . Lost Part 46 | . . 26 . . 10 10 . . Lost Ally 100 | . . . . . 100 . . . Squads Dispatched 12 | . 3 2 . . 3 4 . . Investigation 4 | . 1 2 . . 1 . . . Extermination . | . . . . . . . . . Reinforcement 7 | . 2 . . . 2 3 . . Assault 1 | . . . . . . 1 . . Garrison . | . . . . . . . . . Intercept . | . . . . . . . . . Searches Triggered . | . . . . . . . . . Construction Impeded . | . . . . . . . . . Haulers Reinforced . | . . . . . . . . . Active Scanning Responses . | . . . . . . . . . Cargo Convoy Interrupts . | . . . . . . . . . Stealth | -11 -10 -10 -10 -9 -8 -8 -8 -8 --------- Run | Yrd Mat Min Exi Min Mat Sto Rec Scr Distress Signals 7 | . 2 . . . 1 4 . . Communications Jammed . | . . . . . . . . . Distress Signals . | . . . . . . . . . Times Spotted 155 | . 24 16 . 7 24 46 1 37 Peak Tracking Total 12 | . 5 3 . 4 4 9 . 12 Tactical Retreats 9 | . 2 1 . . 2 2 . 2 Traps | -11 -10 -10 -10 -9 -8 -8 -8 -8 ------- Run | Yrd Mat Min Exi Min Mat Sto Rec Scr Traps Triggered 3 | . 2 . . . . 1 . . Indirectly . | . . . . . . . . . Trap Hack Attempts . | . . . . . . . . . Triggered . | . . . . . . . . . Disarmed . | . . . . . . . . . Reprogrammed . | . . . . . . . . . Reused . | . . . . . . . . . Traps Extracted . | . . . . . . . . . Installed . | . . . . . . . . . Triggered . | . . . . . . . . . Machines | -11 -10 -10 -10 -9 -8 -8 -8 -8 ---------- Run | Yrd Mat Min Exi Min Mat Sto Rec Scr Machines Disabled 21 | . 1 4 . . 1 4 . 11 Max in Single Turn 4 | . 1 4 . . 1 1 . 1 Garrison Access 1 | . . . . . . 1 . . Machines Repaired . | . . . . . . . . . Machines Dismantled . | . . . . . . . . . Machines Sabotaged . | . . . . . . . . . Overloaded Fab Kills . | . . . . . . . . . Hacking | -11 -10 -10 -10 -9 -8 -8 -8 -8 --------- Run | Yrd Mat Min Exi Min Mat Sto Rec Scr Machines Accessed 19 | . 4 . 1 . 1 11 1 1 Terminals 13 | . 3 . . . 1 8 1 . Fabricators . | . . . . . . . . . Repair Stations 3 | . 1 . . . . 2 . . Recycling Units . | . . . . . . . . . Scanalyzers . | . . . . . . . . . Garrison Access 1 | . . . . . . 1 . . Total Hacks 50 | . 14 . 1 . 3 24 3 5 Successful 28 | . 8 . 1 . 1 13 . 5 Failed 21 | . 6 . . . 2 10 3 . Catastrophic 2 | . . . . . . 1 1 . Database Lockouts 1 | . . . . . . 1 . . Manual 20 | . 10 . . . 2 8 . . Terminals 35 | . 11 . . . 3 18 3 . Fabricators . | . . . . . . . . . Repair Stations 8 | . 3 . . . . 5 . . Recycling Units . | . . . . . . . . . Scanalyzers . | . . . . . . . . . Garrison Access 1 | . . . . . . 1 . . Terminal Hacks 18 | . 5 . 1 . . 7 . 5 Record 6 | . . . 1 . . . . 5 Robot Analysis 1 | . 1 . . . . . . . Prototype ID Bank 5 | . 3 . . . . 2 . . Open Door 3 | . . . . . . 3 . . Locate Traps 1 | . . . . . . 1 . . Hauler Manifests 1 | . . . . . . 1 . . Zone Layout 1 | . 1 . . . . . . . Fabricator Hacks . | . . . . . . . . . Repair Station Hacks 5 | . 2 . . . . 3 . . Scan Component 3 | . 1 . . . . 2 . . Repair 2 | . 1 . . . . 1 . . Recycling Unit Hacks . | . . . . . . . . . Scanalyzer . | . . . . . . . . . Garrison Access Hacks 1 | . . . . . . 1 . . Seal Access 1 | . . . . . . 1 . . Unauthorized Hacks 4 | . 1 . . . 1 2 . . Terminals 4 | . 1 . . . 1 2 . . Botnet 4 | . 1 . . . 1 2 . . Fabricators . | . . . . . . . . . Repair Stations . | . . . . . . . . . Recycling Units . | . . . . . . . . . Scanalyzers . | . . . . . . . . . Garrison Access . | . . . . . . . . . Data Cores Recovered 1 | . . . . . . 1 . . Used 1 | . . . . . . 1 . . Hacking Detections 15 | . 4 . . . 1 9 1 . Full Trace Events . | . . . . . . . . . Feedback Events . | . . . . . . . . . Feedback Blocked . | . . . . . . . . . Robot Schematics Acquired . | . . . . . . . . . Robots Built . | . . . . . . . . . Authchips . | . . . . . . . . . Time . | . . . . . . . . . Total Robot Build Rating . | . . . . . . . . . Part Schematics Acquired . | . . . . . . . . . Parts Built . | . . . . . . . . . Authchips . | . . . . . . . . . Time . | . . . . . . . . . Total Part Build Rating . | . . . . . . . . . Part Studies Acquired . | . . . . . . . . . Parts Repaired 2 | . 1 . . . . 1 . . Time 58 | . 26 . . . . 32 . . Parts Recycled . | . . . . . . . . . Recycled Matter . | . . . . . . . . . Retrieved Matter . | . . . . . . . . . Retrieved Components . | . . . . . . . . . Parts Scanalyzed . | . . . . . . . . . Part Schematics Acquired . | . . . . . . . . . Parts Damaged . | . . . . . . . . . Bothacking | -11 -10 -10 -10 -9 -8 -8 -8 -8 ------------ Run | Yrd Mat Min Exi Min Mat Sto Rec Scr Used RIF Installer . | . . . . . . . . . Robots Hacked . | . . . . . . . . . Non-combat . | . . . . . . . . . Combat . | . . . . . . . . . Robot Hacks Applied . | . . . . . . . . . Relay Couplers Released . | . . . . . . . . . Fabnet Peak Effective % . | . . . . . . . . . Robots Rewired . | . . . . . . . . . Allies Hacked . | . . . . . . . . . Hacks Repelled . | . . . . . . . . . Allies | -11 -10 -10 -10 -9 -8 -8 -8 -8 -------- Run | Yrd Mat Min Exi Min Mat Sto Rec Scr Total Allies 16 | . . . . . 5 10 . 1 Largest Group 11 | . . . . . 4 10 10 11 Highest-Rated Group 637 | . . . . . 142 173 173 637 Highest-Rated Ally 464 | . . . . . 142 29 29 464 Total Orders 4 | . . . . . . . . 4 STAY 3 | . . . . . . . . 3 FOLLOW 1 | . . . . . . . . 1 Ally Attacks 322 | . . . . . 69 3 1 249 Total Damage 6631 | . . . . . 840 35 18 5738 Kills 56 | . . . . . 6 1 . 49 Allies Corrupted . | . . . . . . . . . Allies Melted 1 | . . . . . . . . 1 X0-1V1 Amusement Gains 139 | . 14 85 . . 5 15 . 20 Average Entertainment 37 | . 27 87 . 41 27 20 14 27 Good Acts 29 | . 1 5 . 4 6 9 1 3 Bad Acts 17 | . . 3 . . 2 10 1 1 Intel | -11 -10 -10 -10 -9 -8 -8 -8 -8 ------- Run | Yrd Mat Min Exi Min Mat Sto Rec Scr Active Infowar (turns) . | . . . . . . . . . Robot Analysis Total 1 | . 1 . . . . . . . Derelict Logs Recovered 3 | . . 1 . 2 . . . . Drone Launches . | . . . . . . . . . Drone Recoveries . | . . . . . . . . . Exploration | -11 -10 -10 -10 -9 -8 -8 -8 -8 ------------- Run | Yrd Mat Min Exi Min Mat Sto Rec Scr Turns Passed 6583 | 59 1286 951 236 398 633 1471 312 1237 Spaces Moved 3378 | 33 612 437 148 225 336 739 164 684 Core 2 | 2 . . . . . . . . Treads 2581 | 31 612 437 148 225 8 272 164 684 Legs 795 | . . . . . 328 467 . . Wheels . | . . . . . . . . . Hover . | . . . . . . . . . Flight . | . . . . . . . . . Fastest Speed 50 | 50 160 160 160 160 127 120 167 166 Average Speed 153 | 153 160 160 160 160 130 137 167 167 Slowest Speed 250 | 160 160 160 160 160 200 196 167 250 Overloaded Moves . | . . . . . . . . . Propulsion Burnouts . | . . . . . . . . . Robots Hopped . | . . . . . . . . . Potential Cave-ins . | . . . . . . . . . Cave-ins Triggered . | . . . . . . . . . Exploration Rate (%) 57 | 3 91 84 48 68 33 96 38 56 Regions Visited 8 Branch Regions 6 Pre-discovered Areas 3 | . . 1 1 . . 1 . . Known Exits Taken 3 | . . 1 . 1 1 . . . Unknown Exits Taken 5 | 1 1 . 1 . . 1 1 . Scrap Searched 6 | . . . . 1 . . . 5 Spaces Dug . | . . . . . . . . . Terrain Destroyed 13 | . . 8 . . . 5 . . Melee . | . . . . . . . . . Projectile 5 | . . . . . . 5 . . AOE 8 | . . 8 . . . . . . Terrain Rammed . | . . . . . . . . . Walls Destroyed . | . . . . . . . . . Machines Disabled . | . . . . . . . . . Actions | -11 -10 -10 -10 -9 -8 -8 -8 -8 --------- Run | Yrd Mat Min Exi Min Mat Sto Rec Scr Total 4281 | 39 790 625 147 247 461 1025 203 744 Wait 382 | . 64 133 . 2 54 91 28 10 Move 3370 | 32 611 436 147 224 335 738 163 684 Hop . | . . . . . . . . . Pick Up 58 | 2 16 1 . . 10 25 1 3 Fast Attach 30 | 5 4 5 . 2 6 5 1 2 Attach 27 | . 1 6 . 1 3 7 . 9 Detach 28 | . 2 8 . 3 4 3 4 4 Swap 48 | . 8 4 . 4 4 23 1 4 Drop 54 | . 10 . . 2 11 26 3 2 Fire 271 | . 70 32 . 7 34 101 1 26 Melee . | . . . . . . . . . Ram . | . . . . . . . . . Kick 2 | . . . . . . 2 . . Crush 9 | . 4 . . 2 . 2 1 . Escape Stasis . | . . . . . . . . . Rewire 2 | . . . . . . 2 . . Trap . | . . . . . . . . . Miscellaneous . | . . . . . . . . . Route ------- -11/Scrapyard -10/Materials (discovered 5 exits: *Mat x3 / [*Min] / [*Sub]) -10/Mines (discovered 4 exits: *Mat x2 / *Exi / [*Sub]) -10/Exiles -9/Mines -8/Materials (discovered 3 exits: *Fac x2 / *Sto) -8/Storage (discovered 2 exits: *Fac / *Rec) -8/Recycling -8/Scraptown (discovered 1 exit: [*Fac]) History --------- Turn | Location | Event 6 | -11/Scrapyard | Discovered new exit (range 15) 60 | -11/Scrapyard | Entered Materials 139 | -10/Materials | Discovered new exit (range 16) 308 | -10/Materials | Build established: Mutant 410 | -10/Materials | Discovered new exit (range 16) 536 | -10/Materials | Discovered new exit (range 11) 699 | -10/Materials | Repaired Lgt. Treads 774 | -10/Materials | Discovered new exit (range 14) 1121 | -10/Materials | Discovered new exit (range 16) 1288 | -10/Materials | Made a sacrifice at D.C.S.S. Altar Unit 1288 | -10/Materials | Forcibly received Sfc. Transmogifier from X0-1V1 1289 | -10/Materials | Core integrity fell below 50% 1346 | -10/Materials | Entered Mines 1359 | -10/Mines | Core integrity fell below 20% 1371 | -10/Mines | System corruption reached 10% 1470 | -10/Mines | X0-1V1 rescued you from certain death 1519 | -10/Mines | Discovered new exit (range 11) 1539 | -10/Mines | Learned location of Storage (-8) 1648 | -10/Mines | Assembled infested the area 1653 | -10/Mines | Assisted by a Guerilla fighting off Assembled 1881 | -10/Mines | Core integrity permanently improved by X0-1V1 (+300) 1987 | -10/Mines | Identified exit to Materials 2139 | -10/Mines | Discovered new exit (range 7) 2142 | -10/Mines | Identified exit to Exiles 2142 | -10/Mines | X0-1V1 revealed exit location to -10/Exiles 2290 | -10/Mines | Deemed a non-threat by the Exiles lab entrance 2297 | -10/Mines | Entered Exiles 2334 | -10/Exiles | Met 8R-AWN 2365 | -10/Exiles | Met EX-HEX 2427 | -10/Exiles | Met EX-DEC 2437 | -10/Exiles | Learned location of Zion (-6) 2520 | -10/Exiles | Discovered new exit (range 10) 2533 | -10/Exiles | Entered Mines 2546 | -9/Mines | Inventory capacity permanently improved by X0-1V1 (+2; -200 max core) 2625 | -9/Mines | Identified exit to Materials 2625 | -9/Mines | X0-1V1 revealed exit location to -8/Materials 2626 | -9/Mines | Learned 4 Materials zone layouts 2788 | -9/Mines | Learned location of 2 exits from Materials 2931 | -9/Mines | Entered Materials 2931 | -8/Materials | Evolved 4 slots: Propulsion x2, Utility x1, Weapon x1 2932 | -8/Materials | Identified exit to Storage 2932 | -8/Materials | Identified exit to Factory 3052 | -8/Materials | X0-1V1 sent allied G-34 Mercenary (x4) 3200 | -8/Materials | Discovered exit to Factory (range 7) 3295 | -8/Materials | X0-1V1 made a cryptic comment about sterilization and BL-4Z3 3392 | -8/Materials | EX resistance permanently improved by X0-1V1 (+15%; -150 max core) 3435 | -8/Materials | Sterilization system engaged 3435 | -8/Materials | Non-combat units ordered to evacuate 3485 | -8/Materials | X0-1V1 sent allied H-71 Marshal (x1) 3515 | -8/Materials | X0-1V1 activates XOMVISION 3518 | -8/Materials | Build established: Gunner 3535 | -8/Materials | Combat units ordered to evacuate 3564 | -8/Materials | Entered Storage 3609 | -8/Storage | Repaired Particle Gun 3806 | -8/Storage | X0-1V1 sent hostile C-17 Slicer (x1) 3950 | -8/Storage | X0-1V1 announced a LAN party 4031 | -8/Storage | Central database locked down 4042 | -8/Storage | Used back door to open Recycling access 4042 | -8/Storage | Discovered new exit (range 4) 4045 | -8/Storage | Build established: Tank 4281 | -8/Storage | Learned location of Armory (-3) 4442 | -8/Storage | Core integrity fell below 50% 4594 | -8/Storage | Discovered exit to Factory (range 14) 4875 | -8/Storage | Assisted by bots powering up and referring to "LRC-V3" 4935 | -8/Storage | X0-1V1 activates XOMVISION 5035 | -8/Storage | Entered Recycling 5035 | -8/Recycling | Accompanied by 10 allies 5174 | -8/Recycling | Build established: Commander-Tank 5275 | -8/Recycling | Scanned before Scraplab entrance 5301 | -8/Recycling | Entered Scraplab 5314 | -8/Recycling | Discovered new exit (range 3) 5347 | -8/Recycling | Entered Scraptown 5347 | -8/Scraptown | Accompanied by 10 allies 5347 | -8/Scraptown | System corruption cleaned by C-Scrubber 5353 | -8/Scraptown | System corruption reached 10% 5353 | -8/Scraptown | System corruption cleaned by C-Scrubber 5658 | -8/Scraptown | Build established: Commander-Gunner 5667 | -8/Scraptown | Visited UFD Registry 5667 | -8/Scraptown | Registered with UFD as "Raildisc" 5722 | -8/Scraptown | Visited Scrapoid Research Area 5774 | -8/Scraptown | Visited DA-N13 Charitable Foundation 5781 | -8/Scraptown | Found DCF Scrap (28 items) 5829 | -8/Scraptown | Visited Botcube Research 5847 | -8/Scraptown | Visited Scrap Suit Storage 5931 | -8/Scraptown | Visited Abandonware Association 5949 | -8/Scraptown | Learned abandonware demo "SHUTEYE.EXE" 5949 | -8/Scraptown | Learned abandonware demo "TRNCOAT.EXE" 5988 | -8/Scraptown | Visited Research Penetration Think Tank 6026 | -8/Scraptown | Visited Curators Association 6321 | -8/Scraptown | Visited Shadow of the Wyrm 6336 | -8/Scraptown | X0-1V1 brought Wyrm Statue to life 6336 | -8/Scraptown | Attacked by Scraptown defenders 6399 | -8/Scraptown | Core integrity fell below 20% 6432 | -8/Scraptown | Lost 6 allies 6453 | -8/Scraptown | Discovered new exit (range 3) 6541 | -8/Scraptown | Lost 4 parts (1p1n1u1w) 6584 | -8/Scraptown | Destroyed by Triborg with Siege Cannon Last Messages --------------- 06563_ Machine disabled. 06564_ Imp. Deuterium Engine melted. 06564_ LD-KYL(E) destroyed. 06564_ Machine disabled. 06567_ 9E-SJR(E) suffers critical hit (Destroy). 06567_ 9E-SJR(E) destroyed. 06567_ Supplies damaged. 06571_ Triborg activates siege mode. 06571_ Siege Slug penetrates Wall. 06571_ Siege Slug penetrates Machine. 06571_ Penetrated by Siege Slug. 06574_ Triborg exits siege mode. 06576_ Triborg activates siege mode. 06576_ Siege Slug penetrates Machine. 06578_ Penetrated by Siege Slug. 06580_ Siege Slug penetrates Machine. 06582_ Penetrated by Siege Slug. 06584_ X0-1V1 uses you as a vessel of destruction. 06584_ Penetrated by Siege Slug. 06584_ X0-1V1 guffaws! Map ----- +----------------------------------------------------+ | | | | | | | | | | | | | ?????????????????????????????????????????????????? | | ?????#########???????????????????????????????????? | | ?????#"" ##??????????????????????????????????? | | ?????#" < #?##########?####???##?????????????? | | ?????#"" [=!##?"""""""""#"""""??""#?????????????? | | ?????#####%![#?#" "#" ?? "??????????????? | | ?????????#=*%#?#" """ "#?????????????? | | ?????????#[!!#?#" "#" "" "#?????????????? | | ?????????# = #?#" """ "#" " "#?????????????? | | ????????## ###" "#" "#?????????????? | | "######## ##"""""" " # " """"""#?????????????? | | %!=[[% % =*[ #?????????????? | | =!=!%! TT[!=[ #?????????????? | | =!%=*= T%!%! #?????????????? | | ###### #!!%==#""""####; "!["""####??????????????? | | ?????## #*%![= ##???# = %"#?????????????????? | | """#### %[[[ """####?# ""#?????????????????? | | [!% """"#?# %"""#?????????????????? | | " "### ! ""#?#" %"""#?????????????????? | | ???#"" " "#?#"@ " ""#?????????????????? | | ???#" [ ""#?###%#####????????????????## | | ???#" *[= """#????%#???????????????????""" | | ???#" ! [%% ""####????##??????????????????? " | | ???#" " [%= "###???????????? ???????????????? | | ???#" !% ######????????"""""????????????? | | ???#"""" [ #????? ?" ""??????????# " | | ??######=%= ##???# " " ?????????#""" | | ##???#=!![ % #???# " " ?????????#""" | | #!= "#### % % =% #???# " " ?????????#""" | | [%!! [ *%% #???# " "??????????# " | | %/*=%/%! = #???# "" "????????????? | | = ##### #???? """""???????????????? | | ?????# =*%" #????? ?????????????????? | | ???????###%!%##! # ######### ##########???????### | | ???????# [! % #???????#"" | | "??????# !%! / % #???????#" | | " " #! % = #???????#" | | /%! !% * #???????#" | | """ /#=* * % [ #???????#" | | """ #%= ################# #???#####" | | ?""" ?#=/ #???????????????# #???#"""" | | ?""" ?#! #???????????????# #???#"""" | | ?""" ??# ! #???????????????# #???#"""" | | ? ???#*%! ???????????????# #???#"""" | +----------------------------------------------------+ Best States ------------- Heat Dissipation 50 Energy Generation 27 Energy Capacity 1375 Matter Stores 900 Matter Capacity 900 Sight Range 18 Terrain Scan Density 10 Armor Coverage 300 Resistance: EX 15 Evasion (%) 55 Targeting Accuracy 5 Recoil Reduction 4 Item Schematics ----------------- None Robot Schematics ------------------ None Fabricated ------------ Nothing Repaired ---------- Lgt. Treads | 68% | -10/Materials Particle Gun | 25% | -8/Storage Studied --------- None Alien Tech Used ----------------- None Achievements -------------- None Challenges ------------ None Game ------ Seed HardenedShadingExpander Manual? 0 Play Time 01:02:46 Cumulative 593.2 hours Start 2026.08.21 @ 21:35:28 End 2026.08.21 @ 23:32:09 Sessions 3 Manual Loads 0 Difficulty Rogue Special Mode None Game No. 249 Rogue 249 Adventurer 0 Explorer 0 Win Type - Total 35 Types 16/4/4/2/1/2/2/2/1/1 Lore% 89 Gallery% 82 Achievement% 77 Wizard Run 0 Options --------- Layout 0 ASCII 0 Keyboard 1 Movement Arrows Keybinds 0 Fullscreen 2 Font 18/Terminus Map View 76x50 Zoom Use 0% Tactical HUD 1 Map Filters BRIGHTNESS(90)|SATURATION(90) Filters NONE Steam 1 RUN: 97434244-7f22-4b7b-9e4a-0ab6a7b50657